Cogmind - Beta 15 @@@ ROGUE MODE // 2025.08.31 @ 19:29:15 Player: shapeshifter Result: Escaped! Performance ------------- Evolutions (9) 4500 Regions Visited (27) 5400 Robots Destroyed (222) 1110 Value Destroyed (10796) 10796 Prototype IDs (66) 1320 Alien Tech Used (3) 600 Bonus (13357) 13357 TOTAL SCORE: 37083 Bonus ------- High Alert Combat Kills 499 Follower Combat Kills 297 Entered Garrisons 400 Entered DSFs 500 Aligned with FarCom 300 Acquired ECA 300 Met Zhirov 300 Met Warlord at Base 500 MAIN.C Attacked Warlord 500 Hacked Protovariant 500 Met Warlord at Research 2000 Scanned by Researcher 500 Acquired SGEMP 2000 Delivered SGEMP 2000 Win 3000 Friendly Fire -239 Cogmind --------- Core Integrity 1061/1600 Matter 115/300 Energy 99/100 System Corruption 0% Temperature Cool (0) Movement Core (50) Location To Epsilon Eridani Parts ------- > --- POWER (3) -------- (None) > --- PROPULSION (8) --- (None) > --- UTILITY (10) ----- Enhanced Optical Array Graphene Brace > --- WEAPON (4) ------- (None) > --- INVENTORY (5) ---- Improved Fusion Compressor Improved Remote Datajack Peak State ------------ > --- POWER ------------ Particle Reactor Improved Quantum Reactor > --- PROPULSION ------- Biometal Heavy Treads Biometal Heavy Treads Biometal Heavy Treads Biometal Heavy Treads > --- UTILITY ---------- Advanced Cooling System High-capacity Storage Unit Advanced Energy Well Enhanced Optical Array Transmission Jammer Graphene Brace Thermal Barrier EM Shield Advanced Force Field > --- WEAPON ----------- Vortex Rail Enhanced Quantum Rifle Enhanced Hardcell Cannon Enhanced Hardcell Cannon > --- INVENTORY -------- Reinforced Antimatter Reactor Quantum Reactor Biometal Heavy Treads Biometal Heavy Treads Experimental Biometal Heavy Treads Advanced Force Field PSU Rigger Dimensional Node Initializer Transdimensional Reconstructor Vortex Rifle Enhanced Quantum Rifle Enhanced Hardcell Cannon Improved Remote Datajack Plasma Cutter [Rating: 195] Favorites ----------- Power Improved Ion Engine Engine Improved Ion Engine Power Core Micro Nuclear Core Reactor Particle Reactor Propulsion Biometal Heavy Treads Treads Biometal Heavy Treads Leg Flexi-carbon Leg Wheel Armored Huge Wheel Hover Unit Cooled Airjet Flight Unit Nuclear Pulse Thruster Utility Huge Storage Unit Device Graphene Brace Storage Huge Storage Unit Processor Targeting Computer Hackware Hacking Suite Protection Heavy Armor Plating Weapon Heavy Assault Rifle Energy Gun Enhanced Quantum Rifle Ballistic Gun Heavy Assault Rifle Ballistic Cannon Improved Light Cannon Launcher Improved Grenade Launcher Special Weapon Improved Remote Datajack Impact Weapon Powered Hammer Slashing Weapon Scythe Piercing Weapon Spear Build | -11 -10 -10 -9 -9 -9 -8 -8 -8 -8 -8 -7 -6 -5 -5 -5 -5 -4 -4 -4 -4 -4 -3 -3 -3 -2 -2 -1 ------- Run | Yrd Mat Min Mat Min Exi Min Mat Gar Mat Gar Fac Fac Fac Upp Upp Zhi Pro Fac Upp Upp War Pro Res DSF Res Tes Acc Slots Evolved 18 | . . . 2 . . . 2 . . . 2 2 2 . . . . 2 . . . . 2 . 2 . 2 Power 2 | . . . . . . . . . . . . . . . . . . . . . . . 1 . . . 1 Propulsion 6 | . . . . . . . 1 . . . 1 2 . . . . . . . . . . 1 . 1 . . Utility 8 | . . . 1 . . . 1 . . . 1 . 2 . . . . 2 . . . . . . . . 1 Weapon 2 | . . . 1 . . . . . . . . . . . . . . . . . . . . . 1 . . Parts Attached 223 | 7 4 . 13 . 3 4 8 9 8 15 14 32 11 5 . 4 4 17 7 9 9 1 6 13 11 8 1 Power 23 | 1 . . 3 . . . 1 1 1 3 1 2 . 1 . 1 . . 1 1 . . 3 . 2 1 . Engine 9 | 1 . . 3 . . . 1 1 1 2 . . . . . . . . . . . . . . . . . Core 4 | . . . . . . . . . . 1 1 1 . 1 . . . . . . . . . . . . . Reactor 10 | . . . . . . . . . . . . 1 . . . 1 . . 1 1 . . 3 . 2 1 . Propulsion 69 | 2 2 . 2 . 2 . 2 1 5 2 1 15 5 3 . 2 . 4 3 4 1 . 3 5 2 3 . Treads 23 | 2 . . 2 . 2 . 2 1 . . . 6 . . . . . . . . . . . 3 2 3 . Leg 6 | . . . . . . . . . . . . 5 . . . . . . . . . . . 1 . . . Wheel 13 | . 2 . . . . . . . 4 2 1 4 . . . . . . . . . . . . . . . Hover 16 | . . . . . . . . . 1 . . . 5 3 . 2 . 4 1 . . . . . . . . Flight 11 | . . . . . . . . . . . . . . . . . . . 2 4 1 . 3 1 . . . Utility 71 | 2 1 . 3 . 1 2 2 3 1 3 6 7 4 1 . 1 2 13 3 3 3 1 . 4 3 2 . Device 35 | 1 . . . . . 1 1 1 . . 1 5 1 1 . 1 . 9 2 2 2 1 . 4 1 1 . Storage 9 | 1 1 . 1 . . . . . . . 1 . 1 . . . . 1 . . . . . . 2 1 . Processor 16 | . . . . . . . . 2 1 3 2 1 2 . . . 1 1 1 1 1 . . . . . . Hackware 3 | . . . . . . . . . . . 1 . . . . . . 2 . . . . . . . . . Protection 8 | . . . 2 . 1 1 1 . . . 1 1 . . . . 1 . . . . . . . . . . Artifact . | . . . . . . . . . . . . . . . . . . . . . . . . . . . . Weapon 60 | 2 1 . 5 . . 2 3 4 1 7 6 8 2 . . . 2 . . 1 5 . . 4 4 2 1 Energy Gun 12 | 1 . . 1 . . . 1 . . 1 1 . . . . . . . . . . . . 2 3 1 1 Energy Cannon . | . . . . . . . . . . . . . . . . . . . . . . . . . . . . Ballistic Gun 18 | 1 . . 1 . . . 2 3 1 3 1 6 . . . . . . . . . . . . . . . Ballistic Cannon 14 | . 1 . 3 . . . . . . 1 4 2 . . . . . . . . . . . 2 . 1 . Launcher 2 | . . . . . . 2 . . . . . . . . . . . . . . . . . . . . . Special Weapon 2 | . . . . . . . . . . . . . . . . . . . . . 1 . . . 1 . . Impact Weapon 1 | . . . . . . . . . . . . . . . . . 1 . . . . . . . . . . Slashing Weapon 9 | . . . . . . . . 1 . 2 . . 1 . . . . . . 1 4 . . . . . . Piercing Weapon 2 | . . . . . . . . . . . . . 1 . . . 1 . . . . . . . . . . Special Melee Weapon . | . . . . . . . . . . . . . . . . . . . . . . . . . . . . Unidentified Prototypes 17 | . . . 1 . . . 1 . 1 . . 1 . . . 3 . . . . 4 . . 2 1 2 1 Parts Lost 91 | . . . . . . 2 1 2 . 10 2 11 . 2 . . . 8 15 2 . 1 1 11 1 15 7 Power 10 | . . . . . . . . . . 2 . 2 . . . . . . 2 . . . . 2 . 2 . Propulsion 31 | . . . . . . . . . . 2 . 4 . 1 . . . 5 5 1 . 1 1 5 . 4 2 Utility 29 | . . . . . . . 1 1 . 1 . 3 . 1 . . . 3 8 1 . . . 4 . 3 3 Weapon 21 | . . . . . . 2 . 1 . 5 2 2 . . . . . . . . . . . . 1 6 2 Highest Loss Streak 15 | . . . . . . 2 1 2 . 4 2 4 . 1 . . . 5 10 2 . 1 1 11 1 15 7 To Critical Strikes . | . . . . . . . . . . . . . . . . . . . . . . . . . . . . Average Backups 19 | 2 7 8 21 22 23 23 24 24 22 22 24 24 19 14 14 14 15 14 11 9 13 13 13 12 12 12 2 Power 1 | . 1 1 . 1 3 4 3 3 2 . 1 . . . . . 1 1 . . . 1 2 . . 1 . Propulsion 4 | 1 1 . 3 2 1 2 2 3 7 10 8 7 6 4 4 3 2 1 . . 1 1 . 2 2 2 . Utility 7 | . 1 3 10 13 12 11 12 11 5 5 7 7 9 8 8 8 8 8 4 2 3 2 3 1 2 2 . Weapon 4 | . 2 3 5 5 4 3 4 5 5 5 6 6 2 . . . . . . . 2 4 4 3 4 2 . Tool/Special . | . . . . . . . . . . . . . . . . . . . . . . . . . . . . Unused Backups 68 | . . . 7 . 4 . 5 3 10 3 6 11 5 1 . 2 2 2 . . 3 1 1 . . 1 1 Power 8 | . . . . . . . 1 . 3 1 . . . . . . . . . . . . 1 . . 1 1 Propulsion 14 | . . . 4 . . . . . 3 . 2 1 1 1 . 1 . 1 . . . . . . . . . Utility 31 | . . . 2 . 2 . 2 2 4 1 4 6 2 . . 1 2 1 . . 1 1 . . . . . Weapon 14 | . . . 1 . 2 . 2 1 . 1 . 4 2 . . . . . . . 1 . . . . . . Tool/Special 1 | . . . . . . . . . . . . . . . . . . . . . 1 . . . . . . Average Slot Usage (%) 85 | . 100 100 86 88 88 82 89 98 90 79 81 78 97 99 100 100 99 96 64 72 88 94 91 62 80 76 43 Engine 5 | . 14 14 11 11 11 11 9 9 9 6 1 . . . . . . . . . . . . . . . . Core 1 | . . . . . . . . . . . 5 5 . . . . . . . . . . . . . . . Reactor 1 | . . . . . . . . . . . . . 5 4 5 5 5 5 2 4 5 5 5 3 7 7 3 Treads 11 | . 15 . 7 22 22 22 26 27 3 . . 7 15 . . . . . . . . . . 10 16 15 7 Wheel 5 | . 12 28 14 . . . . . 14 13 15 7 . . . . . . . . . . . . . . . Hover 2 | . . . . . . . . . . . . . 19 34 35 35 35 29 12 . . . . . . . . Flight 1 | . . . . . . . . . . . . . . . . . . . 4 23 26 26 28 3 . . . Device 9 | . 14 14 . . . . 8 . 7 . 6 8 8 11 11 12 16 20 21 25 27 31 28 20 26 24 17 Storage 8 | . 14 14 11 11 11 11 9 9 9 9 7 6 5 5 5 5 5 5 5 5 5 5 4 4 6 8 7 Processor 7 | . . . . . . . . 16 11 16 16 9 14 17 17 15 11 10 9 8 10 10 9 6 4 4 4 Hackware 1 | . . . . . . . . . . . 1 6 5 5 5 5 5 9 1 . . . . . . . . Protection 4 | . . . 10 11 11 10 9 9 7 6 3 . 2 . . . . . . . . . . . . . . Energy Gun 1 | . 2 . . . . . 5 . . 2 1 . . . . . . . . . . . . 4 5 6 1 Ballistic Gun 10 | . 14 14 9 11 11 11 20 26 27 20 4 6 7 . . . . . . . . . . . . . . Ballistic Cannon 8 | . 12 14 22 22 22 9 . . . 1 16 7 . . . . . . . . . . . 1 8 7 . Slashing Weapon 1 | . . . . . . . . . . 1 . 3 6 11 11 11 6 5 5 5 12 15 13 3 . . . Peak Build Rating 195 | 7 9 9 23 22 26 28 36 38 44 44 54 79 87 89 88 95 96 110 91 91 114 111 119 155 193 195 106 Average Rating 62 | 5 8 9 21 22 24 25 34 33 39 37 51 56 82 87 88 90 95 105 76 81 98 106 111 120 185 180 88 On Entrance 65 | . 7 9 9 22 22 26 28 35 35 41 37 54 71 87 88 88 95 96 91 56 87 111 103 111 155 193 86 Naked Turns . | . . . . . . . . . . . . . . . . . . . . . . . . . . . . Heaviest Build 144 | 14 91 91 114 113 113 117 117 112 102 107 113 108 108 42 42 47 48 51 43 41 46 46 60 95 122 144 97 Greatest Support 300 | 40 40 26 40 40 43 43 65 65 62 38 56 168 168 52 52 54 54 57 64 49 48 48 56 225 300 150 150 Greatest Overweight (x) 10 | . 3 3 4 2 2 2 2 1 10 3 2 10 . 1 . . . . 1 . . . 1 1 . 1 3 Average Overweight (x) . | . 1 3 3 2 2 2 1 1 2 2 1 1 . . . . . . . . . . . . . . . Largest Inventory Capacity 25 | 8 25 25 25 25 25 25 25 25 25 25 25 25 25 15 15 15 15 15 15 15 15 15 15 15 15 20 20 Average Capacity 22 | 7 15 25 25 25 25 25 25 25 25 25 25 25 19 15 15 15 15 15 15 15 15 15 15 15 15 19 18 Most Carried 25 | 5 8 9 25 24 25 25 25 25 25 25 25 25 25 15 14 15 15 15 15 13 15 15 15 15 15 19 4 Average Carried 20 | 2 7 8 23 24 24 23 24 24 24 24 24 24 19 14 14 14 14 14 11 10 14 14 14 14 14 15 2 Final Capacity 25 | 8 25 25 25 25 25 25 25 25 25 25 25 25 15 15 15 15 15 15 15 15 15 15 15 15 15 20 20 Final Carried 25 | 3 8 9 24 24 25 23 25 25 25 25 25 24 15 14 14 15 15 14 10 13 15 15 14 15 15 6 4 Class Distribution -------------------- 26% | Skirmisher 22% | Tank 15% | Mutant 9% | Scavenger-Tank 5% | Scavenger-Gunner 4% | Scavenger-Mutant 4% | Sprinter 3% | Scavenger-Skirmisher 3% | Scavenger-Sprinter Dominant Class ---------------- Mutant | -10/Materials Mutant | -10/Mines Tank | -9/Materials Scavenger-Tank | -9/Mines Scavenger-Tank | -9/Exiles Skirmisher | -8/Mines Tank | -8/Materials Skirmisher | -8/Garrison Scavenger-Skirmisher | -8/Materials Scavenger-Gunner | -8/Garrison Skirmisher | -7/Factory Skirmisher | -6/Factory Sprinter | -5/Factory Sprinter | -5/Upper Caves Sprinter | -5/Upper Caves Sprinter | -5/Zhirov Sprinter | -4/Proximity Caves Hacker-Sprinter | -4/Factory Mutant | -4/Upper Caves Scavenger-Sprinter | -4/Upper Caves Scavenger-Sprinter | -4/Warlord Scavenger-Sprinter | -3/Proximity Caves Scavenger-Sprinter | -3/Research Mutant | -3/DSF Tank | -2/Research Tank | -2/Testing Mutant | -1/Access Resources | -11 -10 -10 -9 -9 -9 -8 -8 -8 -8 -8 -7 -6 -5 -5 -5 -5 -4 -4 -4 -4 -4 -3 -3 -3 -2 -2 -1 ----------- Run | Yrd Mat Min Mat Min Exi Min Mat Gar Mat Gar Fac Fac Fac Upp Upp Zhi Pro Fac Upp Upp War Pro Res DSF Res Tes Acc Matter Collected 7821 | 289 73 . 703 124 401 162 456 500 382 1054 861 676 192 239 . . 90 155 150 90 . . 182 125 642 235 40 Remotely . | . . . . . . . . . . . . . . . . . . . . . . . . . . . . Salvage Created 8765 | 164 139 . 668 32 . 175 638 559 414 1163 749 797 207 273 . . . 961 389 151 . . 101 411 529 245 . Parts 456 | 5 10 . 32 5 . 8 33 39 26 61 52 46 10 4 . . . 43 20 14 . . 11 10 16 11 . Haulers Intercepted 7 | . . . 1 . . . 2 . . . 1 . 1 . . . . 1 . . . . . . 1 . . Recyclers Shooed 7 | . . . 1 . . . 1 . . . . 5 . . . . . . . . . . . . . . . Parts Field Recycled . | . . . . . . . . . . . . . . . . . . . . . . . . . . . . Retrieved Matter . | . . . . . . . . . . . . . . . . . . . . . . . . . . . . Parts Self-Destructed 28 | . . . . . . . . . . . . . . 6 . . . . 17 5 . . . . . . . Prevented . | . . . . . . . . . . . . . . . . . . . . . . . . . . . . Kills | -11 -10 -10 -9 -9 -9 -8 -8 -8 -8 -8 -7 -6 -5 -5 -5 -5 -4 -4 -4 -4 -4 -3 -3 -3 -2 -2 -1 ------- Run | Yrd Mat Min Mat Min Exi Min Mat Gar Mat Gar Fac Fac Fac Upp Upp Zhi Pro Fac Upp Upp War Pro Res DSF Res Tes Acc Combat Hostiles Destroyed 169 | . 9 . 13 5 . 12 6 14 9 25 16 9 . 4 . . . 12 6 4 . . 3 8 9 5 . Melee 34 | . . . . . . . . . . . . 6 . 4 . . . 10 6 4 . . 3 1 . . . Guns 72 | . 3 . 2 1 . 1 6 14 9 22 2 3 . . . . . . . . . . . 3 3 3 . Cannons 45 | . 6 . 11 4 . 1 . . . 3 14 . . . . . . . . . . . . . 4 2 . AOE 17 | . . . . . . 10 . . . . . . . . . . . 1 . . . . . 4 2 . . Classes Destroyed 24 | 2 2 . 5 . . 2 1 1 . 2 . . . . . . . 1 . 1 . . . 2 3 2 . Worker 11 | . . . 1 . . . 1 . 1 . 2 5 . . . . . . . . . . . . 1 . . Builder 5 | . . . . . . 1 . . . . 3 . 1 . . . . . . . . . . . . . . Tunneler 5 | 3 . . . . . . . . . . 1 1 . . . . . . . . . . . . . . . Hauler 7 | . . . 1 . . . 2 . . . 1 . 1 . . . . 1 . . . . . . 1 . . Recycler 9 | 1 . . 2 . . . 1 . . . 2 2 1 . . . . . . . . . . . . . . Mechanic 1 | . . . . . . . . . . 1 . . . . . . . . . . . . . . . . . Operator 1 | . . . . . . . . . . . . . . . . . . 1 . . . . . . . . . Watcher 11 | . . . 2 . . . 2 . 3 . 2 . . . . . . 2 . . . . . . . . . Swarmer 39 | . 6 . . 5 . 4 . 4 5 4 5 1 . . . . . . . 2 . . 3 . . . . Grunt 53 | . 3 . 8 . . 7 3 2 2 7 4 . . 3 . . . 5 3 . . . . 4 2 . . Brawler 2 | . . . 1 . . . . 1 . . . . . . . . . . . . . . . . . . . Duelist 4 | . . . . . . 1 . 1 . . 1 . . . . . . . 1 . . . . . . . . Researcher 2 | . . . . . . . . . . . . . . . . . . . . . . . . . . 2 . Sentry 24 | . . . 4 . . . 2 3 1 7 2 1 . 1 . . . 1 . 1 . . . . 1 . . Demolisher 2 | . . . . . . . . . . 1 . . . . . . . . . . . . . . 1 . . Specialist 3 | . . . . . . . . . . . . . . . . . . . . . . . . 3 . . . Hunter 10 | . . . . . . . 1 1 1 3 . 2 . . . . . 2 . . . . . . . . . Programmer 24 | . . . . . . . . 1 . 3 4 5 . . . . . 4 2 . . . . . 3 2 . Heavy 1 | . . . . . . . . . . . . . . . . . . . . . . . . 1 . . . Striker 3 | . . . . . . . . . . . . . . . . . . . . . . . . . 1 2 . Alpha 7 1 | . . . . . . . . . . . . . . . . . . . . . . . . . . 1 . Master Thief 1 | . . . . . . . . . . . . . . . . . . . . 1 . . . . . . . Guerrilla 1 | . . . . . . . . 1 . . . . . . . . . . . . . . . . . . . Fireman 1 | . . . . . . . . . . . . . . . . . . . . . . . . . 1 . . Troll 1 | . . . . . . . . . . . . . . . . . . . . . . . . . 1 . . Best Kill Streak 8 | 1 4 . 4 3 . 6 4 3 7 4 8 5 2 4 . . . 3 3 3 . . 3 4 4 3 . Combat Bots Only 5 | . 4 . 4 3 . 5 3 3 5 4 4 2 . 4 . . . 3 3 3 . . 3 4 4 2 . Max Kills in Single Turn 3 | 1 1 . 1 1 . 3 1 1 2 2 2 1 1 1 . . . 1 1 1 . . 1 2 2 1 . Gunslinging . | . . . . . . . . . . . . . . . . . . . . . . . . . . . . Exploded 3 | . . . . . . 3 . . . . . . . . . . . 1 . . . . . 2 1 . . Melee 1 | . . . . . . . . . . . . 1 . 1 . . . 1 1 1 . . 1 1 . . . Uniques/NPCs Destroyed . | . . . . . . . . . . . . . . . . . . . . . . . . . . . . Combat | -11 -10 -10 -9 -9 -9 -8 -8 -8 -8 -8 -7 -6 -5 -5 -5 -5 -4 -4 -4 -4 -4 -3 -3 -3 -2 -2 -1 -------- Run | Yrd Mat Min Mat Min Exi Min Mat Gar Mat Gar Fac Fac Fac Upp Upp Zhi Pro Fac Upp Upp War Pro Res DSF Res Tes Acc Hostile Shots Fired 1804 | . 72 . 66 34 . 44 40 44 25 150 168 160 . 27 . . 6 83 97 33 . 6 14 148 41 450 96 Missed 577 | . 17 . 20 8 . 13 6 12 9 41 64 59 . 7 . . 5 32 37 17 . 3 4 49 12 128 34 Hits 1227 | . 55 . 46 26 . 31 34 32 16 109 104 101 . 20 . . 1 51 60 16 . 3 10 99 29 322 62 Melee 16 | . . . . . . 2 . 1 . . . . . 1 . . . . 4 2 . . . . 2 4 . Projectile 1211 | . 55 . 46 26 . 29 34 31 16 109 104 101 . 19 . . 1 51 56 14 . 3 10 99 27 318 62 AOE 9 | . . . . . . . . . . 1 . 1 . . . . . 1 . . . . . . 6 . . Critical Strikes 50 | . . . . 1 . . . 2 . 2 2 3 . 1 . . . 2 5 2 . . . 5 5 17 3 Actively Blocked 36 | . . . . . . . . 1 . . . . . . . . . . 3 2 . . . 5 5 17 3 Part Disruptions 1 | . . . . . . . . . . . . . . . . . . . . . . . . . . 1 . Damage Taken 18846 | . 520 . 578 201 . 442 415 573 188 1436 1205 1620 . 462 . . 12 918 1263 251 . 65 239 1559 490 5249 1160 Core 3135 | . 88 . 12 26 . 41 14 36 26 232 100 451 . 81 . . . 160 376 75 . 38 68 170 41 561 539 Absorbed by Shields 2279 | . . . . . . . 139 . . 14 . . . . . . 5 197 . . . . . 62 506 1129 227 Redirected to Shielding 50 | . . . . . . . . 7 1 42 . . . . . . . . . . . . . . . . . Ignored by Resistances 1507 | . . . . . . . . . . . . . . . . . . . . . . . . 314 183 1010 . Regen/Repaired (Parts) 188 | . . . . . . . . . . . . . . . . . . . . . 23 . . . 165 . . Core Remaining (%) 68 | 100 . 64 . . . 80 . . . 44 85 46 . . . . 91 . . . . 43 . 81 . 53 66 Volleys Fired 484 | 19 34 . 36 9 . 18 32 47 22 80 60 21 4 . . . . . . . . . . 21 41 33 7 Largest 4 | 2 2 . 3 3 . 3 3 3 3 3 3 3 3 . . . . . . . . . . 2 4 4 1 Hottest 246 | 70 70 . 99 89 . 89 113 74 74 101 120 120 84 . . . . . . . . . . 85 201 246 65 Shots Fired 1201 | 38 68 . 101 27 . 38 76 109 65 211 169 49 12 . . . . . . . . . . 35 88 108 7 Gun 776 | 38 37 . 14 9 . 12 76 109 65 192 40 38 12 . . . . . . . . . . 35 32 63 4 Cannon 398 | . 31 . 87 18 . 14 . . . 19 129 11 . . . . . . . . . . . . 44 45 . Launcher 12 | . . . . . . 12 . . . . . . . . . . . . . . . . . . . . . Special 15 | . . . . . . . . . . . . . . . . . . . . . . . . . 12 . 3 Kinetic 998 | 19 65 . 101 27 . 26 73 109 65 200 163 49 12 . . . . . . . . . . . 44 45 . Thermal 64 | 19 3 . . . . . 3 . . . . . . . . . . . . . . . . . 3 32 4 Explosive 12 | . . . . . . 12 . . . . . . . . . . . . . . . . . . . . . Electromagnetic 17 | . . . . . . . . . . 11 6 . . . . . . . . . . . . . . . . Entropic 95 | . . . . . . . . . . . . . . . . . . . . . . . . 35 29 31 . Robot Hit Streak 27 | 6 5 . 6 4 . 6 10 20 8 25 27 10 7 . . . . . . . . . . 7 6 10 3 Robot Miss Streak 6 | 6 5 . 3 4 . 6 4 1 4 4 6 3 1 . . . . . . . . . . 2 4 2 1 Penetration Max 2 | . . . . . . . . 1 1 2 1 . . . . . . . . . . . . 1 . . . Secondary Targets 7 | . . . . . . . . 3 . 4 . . . . . . . . . . . . . . . . . Max Gunslinging Chain 1 | . . . . . . . . 1 . 1 . . . . . . . . . . . . . . . . . Shots Hit Robots 824 | 19 34 . 48 12 . 16 48 69 37 141 79 59 10 23 . . . 40 18 11 . . 7 30 45 74 4 Core Hits 355 | 7 10 . 22 5 . 24 23 27 22 48 37 24 6 6 . . . 17 11 5 . . 4 15 21 21 . Critical Kills 5 | . . . . . . . . . 1 4 . . . . . . . . . . . . . . . . . Critical Parts Destroyed 26 | . . . 1 . . . . 3 . 12 1 1 . . . . . . . . . . . 4 2 2 . Critical Strikes 67 | 2 . . 3 1 . . . 3 1 18 9 9 . 2 . . . 5 . . . . . 4 2 8 . Burn 2 | 2 . . . . . . . . . . . . . . . . . . . . . . . . . . . Destroy 24 | . . . 1 . . . . 3 1 17 1 1 . . . . . . . . . . . . . . . Blast 19 | . . . 2 1 . . . . . . 8 2 . . . . . . . . . . . . . 6 . Corrupt 1 | . . . . . . . . . . 1 . . . . . . . . . . . . . . . . . Sever 11 | . . . . . . . . . . . . 6 . . . . . 5 . . . . . . . . . Impale 2 | . . . . . . . . . . . . . . 2 . . . . . . . . . . . . . Detonate 8 | . . . . . . . . . . . . . . . . . . . . . . . . 4 2 2 . Melee Attacks 222 | . . . . . . . . 2 . 8 1 52 12 28 . . . 51 19 16 7 5 10 11 . . . Impact 11 | . . . . . . . . . . . . . . . . . . 11 . . . . . . . . . Slashing 188 | . . . . . . . . 2 . 8 1 52 10 11 . . . 36 19 16 7 5 10 11 . . . Piercing 23 | . . . . . . . . . . . . . 2 17 . . . 4 . . . . . . . . . Sneak Attacks 16 | . . . . . . . . . . . . 10 1 . . . . 2 . . . . 2 1 . . . Combat Hostiles 1 | . . . . . . . . . . . . . . . . . . . . . . . . 1 . . . Follow-up Attacks 11 | . . . . . . . . . . . . . . 3 . . . 4 . . . . 3 1 . . . Damage Inflicted 25915 | 208 535 . 1104 230 . 1510 782 1143 570 2517 2345 2002 353 1011 . . . 2294 785 526 . . 347 2285 2224 3115 29 Guns 10327 | 208 158 . 121 44 . 112 782 1143 570 2254 494 510 173 . . . . . . . . . . 1149 741 1839 29 Cannons 6186 | . 377 . 983 186 . 144 . . . 263 1851 117 . . . . . . . . . . . . 1128 1137 . Explosions 2574 | . . . . . . 1254 . . . . . . 75 . . . . . . . . . . 751 355 139 . Melee 6796 | . . . . . . . . . . . . 1343 105 1011 . . . 2294 785 526 . . 347 385 . . . Ramming 32 | . . . . . . . . . . . . 32 . . . . . . . . . . . . . . . Kinetic 12368 | 83 523 . 1104 230 . 256 755 1143 570 2382 2257 627 173 . . . . . . . . . . . 1128 1137 . Thermal 1986 | 125 12 . . . . . 27 . . . . . . . . . . . . . . . . 751 232 810 29 Explosive 1452 | . . . . . . 1254 . . . . . . 75 . . . . . . . . . . . 123 . . Electromagnetic 298 | . . . . . . . . . . 135 88 . . . . . . . . . . . . . . 75 . Impact 298 | . . . . . . . . . . . . . . . . . . 298 . . . . . . . . . Slashing 5877 | . . . . . . . . . . . . 1343 105 455 . . . 1931 785 526 . . 347 385 . . . Piercing 621 | . . . . . . . . . . . . . . 556 . . . 65 . . . . . . . . . Entropic 2983 | . . . . . . . . . . . . . . . . . . . . . . . . 1149 741 1093 . Highest Corruption 10 | . . . . . . . . 1 1 2 5 9 . . . . . 2 3 3 3 . . . 2 10 . Average Corruption 2 | . . . . . . . . 1 1 1 4 3 . . . . . 1 2 3 3 . . . 1 3 . Corruption Purged . | . . . . . . . . . . . . . . . . . . . . . . . . . . . . Corruption Blocked . | . . . . . . . . . . . . . . . . . . . . . . . . . . . . Effects 100 | . . . . . . . . 1 5 16 13 33 . . . . . 2 3 1 . . . . 17 9 . Message Errors 19 | . . . . . . . . 1 . 4 2 7 . . . . . 1 1 1 . . . . 2 . . Matter Fused 20 | . . . . . . . . . . 3 4 7 . . . . . . . . . . . . 5 1 . Heat Flow Errors 14 | . . . . . . . . . 1 1 1 5 . . . . . 1 . . . . . . 4 1 . Energy Discharges 14 | . . . . . . . . . . 6 2 4 . . . . . . 1 . . . . . . 1 . Parts Rejected 1 | . . . . . . . . . . . . . . . . . . . . . . . . . . 1 . Parts Fused 1 | . . . . . . . . . . . . 1 . . . . . . . . . . . . . . . Data Loss (minor) 21 | . . . . . . . . . 2 2 3 6 . . . . . . 1 . . . . . 4 3 . Data Loss (major) 2 | . . . . . . . . . . . . 1 . . . . . . . . . . . . 1 . . Misfires 2 | . . . . . . . . . . . . 1 . . . . . . . . . . . . 1 . . Alerts 3 | . . . . . . . . . 1 . . 1 . . . . . . . . . . . . . 1 . Weapon Failures 3 | . . . . . . . . . 1 . 1 . . . . . . . . . . . . . . 1 . Overload Shots . | . . . . . . . . . . . . . . . . . . . . . . . . . . . . Overflow Damage 817 | . 28 . 24 3 . 66 . . . . 31 150 . 81 . . . 229 16 . . . 18 25 93 53 . Projectiles 148 | . 28 . 24 3 . . . . . . 31 2 . . . . . . . . . . . . 7 53 . Explosions 167 | . . . . . . 66 . . . . . . . . . . . . . . . . . 15 86 . . Melee 502 | . . . . . . . . . . . . 148 . 81 . . . 229 16 . . . 18 10 . . . Knockbacks 54 | . 9 . 6 4 . . . . . . 14 3 . . . . . 3 . . . . . . 5 10 . Impact 3 | . . . . . . . . . . . . . . . . . . 3 . . . . . . . . . Kinetic 47 | . 8 . 6 4 . . . . . . 14 3 . . . . . . . . . . . . 5 7 . Secondary 4 | . 1 . . . . . . . . . . . . . . . . . . . . . . . . 3 . Self-Inflicted Damage 142 | . . . . . . . . . . . . 15 . . . . . . . . . . . 94 . 33 . Shots 3 | . . . . . . . . . . . . . . . . . . . . . . . . 2 . 1 . Rammed 3 | . . . . . . . . . . . . 3 . . . . . . . . . . . . . . . Targets Rammed 3 | . . . . . . . . . . . . 3 . . . . . . . . . . . . . . . Kicked . | . . . . . . . . . . . . . . . . . . . . . . . . . . . . Crushed . | . . . . . . . . . . . . . . . . . . . . . . . . . . . . Highest Temperature 481 | 70 40 . 481 140 . 331 247 161 211 369 381 233 . . . . . 134 24 . . . 46 . 152 102 . Average Temperature 79 | 24 17 . 121 65 . 102 83 57 69 91 95 81 . . . . . 80 24 . . . 16 . 73 18 . Received Heat Transfer 2986 | . 138 . 285 . . 171 117 207 18 378 153 90 . 126 . . 6 59 259 27 . 9 18 288 28 573 36 Effects 12 | . . . 8 . . . . . . 1 2 1 . . . . . . . . . . . . . . . Shutdowns 2 | . . . 1 . . . . . . . 1 . . . . . . . . . . . . . . . . Energy Bleed 5 | . . . 2 . . . . . . 1 1 1 . . . . . . . . . . . . . . . Interference 1 | . . . 1 . . . . . . . . . . . . . . . . . . . . . . . . Short Circuit 1 | . . . 1 . . . . . . . . . . . . . . . . . . . . . . . . Damage (major) 3 | . . . 3 . . . . . . . . . . . . . . . . . . . . . . . . Siege Activations . | . . . . . . . . . . . . . . . . . . . . . . . . . . . . Martial Activations . | . . . . . . . . . . . . . . . . . . . . . . . . . . . . Shielding Activations . | . . . . . . . . . . . . . . . . . . . . . . . . . . . . Robots Disrupted . | . . . . . . . . . . . . . . . . . . . . . . . . . . . . Combat Hostiles . | . . . . . . . . . . . . . . . . . . . . . . . . . . . . Robots Corrupted 1 | . . . . . . . . . . . . . . . . . . 1 . . . . . . . . . Combat Hostiles 1 | . . . . . . . . . . . . . . . . . . 1 . . . . . . . . . Parts Fried 2 | . . . . . . . . . . . . . . . . . . 2 . . . . . . . . . Impact Corruptions 2 | . . . . . . . . . . . . . . . . . . 2 . . . . . . . . . Robots Melted 1 | . . . . . . . . . . . . . . . . . . . . . . . . 1 . . . Combat Hostiles . | . . . . . . . . . . . . . . . . . . . . . . . . . . . . Parts Melted 1 | 1 . . . . . . . . . . . . . . . . . . . . . . . . . . . Heat Transferred 2291 | 518 37 . . . . . 74 . . . . . . . . . . . . . . . . 500 150 975 37 Parts Sabotaged . | . . . . . . . . . . . . . . . . . . . . . . . . . . . . Parts Stolen 1 | . . . . . . . . . . . . . . . . . . . . 1 . . . . . . . Parts Stripped . | . . . . . . . . . . . . . . . . . . . . . . . . . . . . Power Chain Reactions . | . . . . . . . . . . . . . . . . . . . . . . . . . . . . Alert | -11 -10 -10 -9 -9 -9 -8 -8 -8 -8 -8 -7 -6 -5 -5 -5 -5 -4 -4 -4 -4 -4 -3 -3 -3 -2 -2 -1 ------- Run | Yrd Mat Min Mat Min Exi Min Mat Gar Mat Gar Fac Fac Fac Upp Upp Zhi Pro Fac Upp Upp War Pro Res DSF Res Tes Acc Maximum Alert Level 3 | . . . . . . 1 . 3 2 3 2 1 . . . . . . . . . . . 1 1 . . Low Security (%) 63 | 100 100 100 100 100 . 74 100 37 . . . 94 100 . . . . 100 . . . . 100 56 72 100 100 Level 1 17 | . . . . . . 25 . 27 23 8 62 5 . . . . . . . . . . . 43 27 . . Level 2 15 | . . . . . . . . 27 76 55 37 . . . . . . . . . . . . . . . . Level 3 3 | . . . . . . . . 7 . 35 . . . . . . . . . . . . . . . . . Level 4 . | . . . . . . . . . . . . . . . . . . . . . . . . . . . . Level 5 . | . . . . . . . . . . . . . . . . . . . . . . . . . . . . High Security . | . . . . . . . . . . . . . . . . . . . . . . . . . . . . Max Security . | . . . . . . . . . . . . . . . . . . . . . . . . . . . . Sterilizations 1 | . . . . . . . . . . . . . . . . . . . . . . . . 1 . . . Peak Influence 970 | 5 133 40 160 72 . 286 78 847 579 970 533 250 62 . . . . 107 . . . . 75 241 301 157 104 Initial 508 | . . 40 . 16 . . 78 15 412 255 508 250 25 . . . . . . . . . . 45 135 85 . Average 187 | . 76 8 75 10 . 70 16 358 450 617 374 51 10 . . . . 45 . . . . 32 144 116 100 44 Influence Increases 6478 | 20 273 . 395 113 . 377 222 852 381 835 607 351 85 230 . . . 372 185 60 . . 100 251 392 260 117 Destroy 0b10 Robot/C 3560 | . 180 . 260 100 . 240 120 340 220 500 320 180 . 80 . . . 240 120 60 . . 60 160 180 140 60 Destroy 0b10 Robot/NC 270 | 20 . . 30 . . 5 30 5 20 10 55 40 15 . . . . 20 . . . . . 5 10 . 5 Destroy Leader 656 | . 40 . 76 10 . 40 48 30 66 20 86 70 2 . . . . 46 20 . . . 10 20 52 10 10 Allied During Kill 85 | . . . . . . . . 38 16 1 . . . . . . . . . . . . . . . . 30 Successful Hack 139 | . 5 . 10 . . 5 9 14 5 14 . . . . . . . 21 . . . . . . . 56 . Disable Machine 255 | . . . . . . . 15 15 30 15 75 30 30 . . . . . . . . . . . 30 15 . Anti-Garrison Action 600 | . . . . . . . . 400 . 200 . . . . . . . . . . . . . . . . . Destroy Structure 463 | . 3 . 4 3 . 57 . 10 9 45 41 16 38 . . . . . . . . . . 66 120 39 12 Partial Spotted 60 | . . . . . . . . . . . . . . . . . . 30 . . . . 30 . . . . Lose Combat Pursuer 390 | . 45 . 15 . . 30 . . 15 30 30 15 . 150 . . . 15 45 . . . . . . . . Influence Decreases 6478 | 20 168 105 351 157 . 175 400 29 835 258 1065 811 136 141 48 42 . 283 274 60 . . 40 70 481 412 117 Entered New Map 1833 | . . 65 . 28 . . 124 9 435 138 462 262 27 1 18 42 . . 34 . . . . 15 106 67 . Time Decay 3788 | 20 168 40 351 129 . 155 276 . 380 . 583 458 109 120 30 . . 164 95 40 . . 30 . 365 195 80 Lost Part 778 | . . . . . . 20 . 20 . 100 20 91 . 20 . . . 80 145 20 . . 10 55 10 150 37 Lost Ally 40 | . . . . . . . . . 20 20 . . . . . . . . . . . . . . . . . Purge Threat 39 | . . . . . . . . . . . . . . . . . . 39 . . . . . . . . . Squads Dispatched 26 | . 3 . 1 . . . . . . . 4 4 1 . . . . 3 . . . . . 1 1 6 2 Investigation 4 | . . . 1 . . . . . . . . . . . . . . 1 . . . . . . . . 2 Extermination 10 | . . . . . . . . . . . 3 4 1 . . . . 1 . . . . . . . 1 . Reinforcement 11 | . 3 . . . . . . . . . 1 . . . . . . 1 . . . . . 1 1 4 . Assault 1 | . . . . . . . . . . . . . . . . . . . . . . . . . . 1 . Garrison . | . . . . . . . . . . . . . . . . . . . . . . . . . . . . Intercept . | . . . . . . . . . . . . . . . . . . . . . . . . . . . . Searches Triggered . | . . . . . . . . . . . . . . . . . . . . . . . . . . . . Construction Impeded 1 | . . . . . . . . . . . 1 . . . . . . . . . . . . . . . . Haulers Reinforced 1 | . . . . . . . . . . . . . . . . . . . . . . . . . 1 . . Active Scanning Responses . | . . . . . . . . . . . . . . . . . . . . . . . . . . . . Cargo Convoy Interrupts . | . . . . . . . . . . . . . . . . . . . . . . . . . . . . Stealth | -11 -10 -10 -9 -9 -9 -8 -8 -8 -8 -8 -7 -6 -5 -5 -5 -5 -4 -4 -4 -4 -4 -3 -3 -3 -2 -2 -1 --------- Run | Yrd Mat Min Mat Min Exi Min Mat Gar Mat Gar Fac Fac Fac Upp Upp Zhi Pro Fac Upp Upp War Pro Res DSF Res Tes Acc Distress Signals 11 | . . . . . . . . . . . . 1 . . . . . 1 . . . 1 . . 4 2 2 Communications Jammed 33 | . . . . . . . . . . . . . . . . . . . . . . . 2 7 1 21 2 Distress Signals 26 | . . . . . . . . . . . . . . . . . . . . . . . 2 . 1 21 2 Times Spotted 294 | . 20 . 14 7 . 14 9 17 14 29 26 14 . 12 . . 4 18 12 12 . 4 5 8 17 28 10 Peak Tracking Total 15 | . 5 . 3 4 . 6 3 5 5 4 5 5 . 5 . . 4 4 5 6 . 7 2 4 5 15 5 Tactical Retreats 16 | . 2 . 1 . . 2 . . 1 1 2 1 . 4 . . . 1 1 . . . . . . . . Traps | -11 -10 -10 -9 -9 -9 -8 -8 -8 -8 -8 -7 -6 -5 -5 -5 -5 -4 -4 -4 -4 -4 -3 -3 -3 -2 -2 -1 ------- Run | Yrd Mat Min Mat Min Exi Min Mat Gar Mat Gar Fac Fac Fac Upp Upp Zhi Pro Fac Upp Upp War Pro Res DSF Res Tes Acc Traps Triggered 14 | . . . 1 . . . . 4 . 7 1 . . . . . . . . . . . . 1 . . . Indirectly . | . . . . . . . . . . . . . . . . . . . . . . . . . . . . Trap Hack Attempts . | . . . . . . . . . . . . . . . . . . . . . . . . . . . . Triggered . | . . . . . . . . . . . . . . . . . . . . . . . . . . . . Disarmed . | . . . . . . . . . . . . . . . . . . . . . . . . . . . . Reprogrammed . | . . . . . . . . . . . . . . . . . . . . . . . . . . . . Reused . | . . . . . . . . . . . . . . . . . . . . . . . . . . . . Traps Extracted . | . . . . . . . . . . . . . . . . . . . . . . . . . . . . Installed . | . . . . . . . . . . . . . . . . . . . . . . . . . . . . Triggered . | . . . . . . . . . . . . . . . . . . . . . . . . . . . . Objects Rigged 2 | . . . . . . . . . . . . . . . . . . . . . . . . . . 1 1 Exploded 1 | . . . . . . . . . . . . . . . . . . . . . . . . . . 1 . Time Bombs Activated 1 | . . . . . . . . . . . . . . . . . . . . . . . . . . . 1 Exploded 1 | . . . . . . . . . . . . . . . . . . . . . . . . . . . 1 Machines | -11 -10 -10 -9 -9 -9 -8 -8 -8 -8 -8 -7 -6 -5 -5 -5 -5 -4 -4 -4 -4 -4 -3 -3 -3 -2 -2 -1 ---------- Run | Yrd Mat Min Mat Min Exi Min Mat Gar Mat Gar Fac Fac Fac Upp Upp Zhi Pro Fac Upp Upp War Pro Res DSF Res Tes Acc Machines Disabled 31 | . . . . . . . 1 7 2 4 5 2 2 . . . . . 1 . 1 2 . . 2 2 . Max in Single Turn 2 | . . . . . . . 1 1 . 1 1 1 2 . . . . . 1 . 1 1 . . 1 1 . Garrison Access 3 | . . . . . . . . . . . 1 . . . . . . 1 . . . . . . 1 . . Garrison Relay 8 | . . . . . . . . 6 . 2 . . . . . . . . . . . . . . . . . Machines Repaired . | . . . . . . . . . . . . . . . . . . . . . . . . . . . . Machines Dismantled 1 | . . . . . . . . . . . . . . . . . . . . . 1 . . . . . . Machines Sabotaged . | . . . . . . . . . . . . . . . . . . . . . . . . . . . . Overloaded Fab Kills . | . . . . . . . . . . . . . . . . . . . . . . . . . . . . Hacking | -11 -10 -10 -9 -9 -9 -8 -8 -8 -8 -8 -7 -6 -5 -5 -5 -5 -4 -4 -4 -4 -4 -3 -3 -3 -2 -2 -1 --------- Run | Yrd Mat Min Mat Min Exi Min Mat Gar Mat Gar Fac Fac Fac Upp Upp Zhi Pro Fac Upp Upp War Pro Res DSF Res Tes Acc Machines Accessed 58 | . 3 . 6 . 2 1 5 3 2 2 4 5 1 . . 4 . 7 . . 5 2 2 . . 3 1 Terminals 35 | . 3 . 5 . . 1 3 3 1 2 2 3 1 . . . . 4 . . . 2 1 . . 3 1 Fabricators . | . . . . . . . . . . . . . . . . . . . . . . . . . . . . Repair Stations . | . . . . . . . . . . . . . . . . . . . . . . . . . . . . Recycling Units 7 | . . . 1 . . . 1 . . . 1 2 . . . . . 2 . . . . . . . . . Scanalyzers . | . . . . . . . . . . . . . . . . . . . . . . . . . . . . Garrison Access 5 | . . . . . . . 1 . 1 . 1 . . . . . . 1 . . . . 1 . . . . Total Hacks 124 | . 7 . 16 . 2 2 10 5 4 2 8 10 1 . . 17 . 17 . . 7 4 3 . . 7 2 Successful 71 | . 3 . 8 . 2 1 5 2 2 1 1 3 . . . 17 . 11 . . 7 3 1 . . 4 . Failed 53 | . 4 . 8 . . 1 5 3 2 1 7 7 1 . . . . 6 . . . 1 2 . . 3 2 Catastrophic 11 | . 1 . 1 . . . 1 . 1 1 2 1 . . . . . 1 . . . . 1 . . . 1 Database Lockouts . | . . . . . . . . . . . . . . . . . . . . . . . . . . . . Manual 42 | . 6 . 13 . 1 . 7 . 3 . 4 5 1 . . . . 1 . . . . . . . 1 . Terminals 76 | . 7 . 13 . . 2 7 5 3 2 5 5 1 . . . . 12 . . . 4 1 . . 7 2 Fabricators . | . . . . . . . . . . . . . . . . . . . . . . . . . . . . Repair Stations . | . . . . . . . . . . . . . . . . . . . . . . . . . . . . Recycling Units 15 | . . . 3 . . . 2 . . . 1 5 . . . . . 4 . . . . . . . . . Scanalyzers . | . . . . . . . . . . . . . . . . . . . . . . . . . . . . Garrison Access 7 | . . . . . . . 1 . 1 . 2 . . . . . . 1 . . . . 2 . . . . Terminal Hacks 48 | . 1 . 2 . 2 1 1 2 . 1 . . . . . 17 . 6 . . 7 3 1 . . 4 . Record 15 | . . . . . 1 . . . . . . . . . . 5 . 1 . . 5 2 . . . 1 . Part Schematic 4 | . . . . . . . . . . . . . . . . 4 . . . . . . . . . . . Robot Analysis 4 | . . . . . . . . . . . . . . . . 4 . . . . . . . . . . . Prototype ID Bank 4 | . . . . . . . . . . . . . . . . 4 . . . . . . . . . . . Open Door 4 | . . . . . . . . 1 . . . . . . . . . . . . 2 1 . . . . . Open DSF 1 | . . . . . . . . . . . . . . . . . . . . . . . 1 . . . . Branch Access Points 3 | . 1 . 1 . . . . . . . . . . . . . . 1 . . . . . . . . . Emergency Access Points 1 | . . . . . . . . . . 1 . . . . . . . . . . . . . . . . . Fabricator Index 1 | . . . . . . . . . . . . . . . . . . 1 . . . . . . . . . Alert Level 1 | . . . . . . . . . . . . . . . . . . 1 . . . . . . . . . Unreport Threat 1 | . . . . . . . . . . . . . . . . . . 1 . . . . . . . . . Locate Traps 1 | . . . . . . . . . . . . . . . . . . . . . . . . . . 1 . Hauler Manifests 1 | . . . . . . . . . . . . . . . . . . 1 . . . . . . . . . Registered Prototypes 1 | . . . . . . . . . . . . . . . . . . . . . . . . . . 1 . Zone Layout 3 | . . . 1 . . 1 1 . . . . . . . . . . . . . . . . . . . . Garrison Registry 1 | . . . . . . . . 1 . . . . . . . . . . . . . . . . . . . Proto ID Catalog 1 | . . . . . 1 . . . . . . . . . . . . . . . . . . . . . . Protovariant Controls 1 | . . . . . . . . . . . . . . . . . . . . . . . . . . 1 . Fabricator Hacks . | . . . . . . . . . . . . . . . . . . . . . . . . . . . . Repair Station Hacks . | . . . . . . . . . . . . . . . . . . . . . . . . . . . . Recycling Unit Hacks 8 | . . . 1 . . . 1 . . . . 3 . . . . . 3 . . . . . . . . . Report Inventory 5 | . . . 1 . . . 1 . . . . 1 . . . . . 2 . . . . . . . . . Retrieve Components 3 | . . . . . . . . . . . . 2 . . . . . 1 . . . . . . . . . Scanalyzer . | . . . . . . . . . . . . . . . . . . . . . . . . . . . . Garrison Access Hacks 4 | . . . . . . . 1 . 1 . 1 . . . . . . 1 . . . . . . . . . Unlock Access 2 | . . . . . . . 1 . 1 . . . . . . . . . . . . . . . . . . Seal Access 2 | . . . . . . . . . . . 1 . . . . . . 1 . . . . . . . . . Unauthorized Hacks 11 | . 2 . 5 . . . 2 . 1 . . . . . . . . 1 . . . . . . . . . Terminals 11 | . 2 . 5 . . . 2 . 1 . . . . . . . . 1 . . . . . . . . . Botnet 11 | . 2 . 5 . . . 2 . 1 . . . . . . . . 1 . . . . . . . . . Fabricators . | . . . . . . . . . . . . . . . . . . . . . . . . . . . . Repair Stations . | . . . . . . . . . . . . . . . . . . . . . . . . . . . . Recycling Units . | . . . . . . . . . . . . . . . . . . . . . . . . . . . . Scanalyzers . | . . . . . . . . . . . . . . . . . . . . . . . . . . . . Garrison Access . | . . . . . . . . . . . . . . . . . . . . . . . . . . . . Data Cores Recovered 3 | . . . . . . . . . . . . . . . . . . 1 . . . . . . . 1 1 Used 1 | . . . . . . . . . . . . . . . . . . 1 . . . . . . . . . Hacking Detections 38 | . 2 . 6 . . . 5 2 2 1 4 3 1 . . . . 6 . . . 2 1 . . 2 1 Full Trace Events 2 | . . . . . . . . . . . . . . . . . . 1 . . . . . . . . 1 Feedback Events 1 | . . . . . . . . . . . . . . . . . . 1 . . . . . . . . . Corruption 1 | . . . . . . . . . . . . . . . . . . 1 . . . . . . . . . Feedback Blocked . | . . . . . . . . . . . . . . . . . . . . . . . . . . . . Robot Schematics Acquired 3 | . . . . . . . . . . . . . . . . . . . . . . . . . . 3 . Robots Built . | . . . . . . . . . . . . . . . . . . . . . . . . . . . . Authchips . | . . . . . . . . . . . . . . . . . . . . . . . . . . . . Time . | . . . . . . . . . . . . . . . . . . . . . . . . . . . . Total Robot Build Rating . | . . . . . . . . . . . . . . . . . . . . . . . . . . . . Part Schematics Acquired 5 | . . . . . . . . . . . . . . . . 4 . . . . . . . . . 1 . Parts Built . | . . . . . . . . . . . . . . . . . . . . . . . . . . . . Authchips . | . . . . . . . . . . . . . . . . . . . . . . . . . . . . Time . | . . . . . . . . . . . . . . . . . . . . . . . . . . . . Total Part Build Rating . | . . . . . . . . . . . . . . . . . . . . . . . . . . . . Parts Repaired . | . . . . . . . . . . . . . . . . . . . . . . . . . . . . Time . | . . . . . . . . . . . . . . . . . . . . . . . . . . . . Parts Recycled . | . . . . . . . . . . . . . . . . . . . . . . . . . . . . Recycled Matter . | . . . . . . . . . . . . . . . . . . . . . . . . . . . . Retrieved Matter . | . . . . . . . . . . . . . . . . . . . . . . . . . . . . Retrieved Components 22 | . . . . . . . . . . . . 20 . . . . . 2 . . . . . . . . . Parts Scanalyzed . | . . . . . . . . . . . . . . . . . . . . . . . . . . . . Part Schematics Acquired . | . . . . . . . . . . . . . . . . . . . . . . . . . . . . Parts Damaged . | . . . . . . . . . . . . . . . . . . . . . . . . . . . . Bothacking | -11 -10 -10 -9 -9 -9 -8 -8 -8 -8 -8 -7 -6 -5 -5 -5 -5 -4 -4 -4 -4 -4 -3 -3 -3 -2 -2 -1 ------------ Run | Yrd Mat Min Mat Min Exi Min Mat Gar Mat Gar Fac Fac Fac Upp Upp Zhi Pro Fac Upp Upp War Pro Res DSF Res Tes Acc Used RIF Installer . | . . . . . . . . . . . . . . . . . . . . . . . . . . . . Robots Hacked 13 | . . . . . . . . . . . . . . . . . . . . . . . . . 10 . 3 Non-combat 1 | . . . . . . . . . . . . . . . . . . . . . . . . . 1 . . Combat 12 | . . . . . . . . . . . . . . . . . . . . . . . . . 9 . 3 Robot Hacks Applied 14 | . . . . . . . . . . . . . . . . . . . . . . . . . 11 . 3 parse_system 14 | . . . . . . . . . . . . . . . . . . . . . . . . . 11 . 3 Relay Couplers Released 43 | . . . . . . . . 23 . 9 6 4 . . . . . . . . . . . . 1 . . Machine Destruction 33 | . . . . . . . . 23 . 9 . . . . . . . . . . . . . . 1 . . Programmers 10 | . . . . . . . . . . . 6 4 . . . . . . . . . . . . . . . Fabnet Peak Effective % . | . . . . . . . . . . . . . . . . . . . . . . . . . . . . Robots Rewired 1 | . . . . . . . . . . 1 . . . . . . . . . . . . . . . . . Allies Hacked . | . . . . . . . . . . . . . . . . . . . . . . . . . . . . Hacks Repelled . | . . . . . . . . . . . . . . . . . . . . . . . . . . . . Allies | -11 -10 -10 -9 -9 -9 -8 -8 -8 -8 -8 -7 -6 -5 -5 -5 -5 -4 -4 -4 -4 -4 -3 -3 -3 -2 -2 -1 -------- Run | Yrd Mat Min Mat Min Exi Min Mat Gar Mat Gar Fac Fac Fac Upp Upp Zhi Pro Fac Upp Upp War Pro Res DSF Res Tes Acc Total Allies 6 | . . . . . . . . 2 . 1 . . . . . . . . . . . . . . . . 3 Largest Group 3 | . . . . . . . . 2 1 1 . . . . . . . . . . . . . . . . 3 Highest-Rated Group 379 | . . . . . . . . 78 34 15 . . . . . . . . . . . . . . . . 379 Highest-Rated Ally 135 | . . . . . . . . 39 34 15 . . . . . . . . . . . . . . . . 135 Initial Warlord ECA Mod 235 | . . . . . . . . . 10 10 15 14 13 13 13 13 12 12 10 10 10 9 9 9 18 18 17 Warlord Squad Rendezvous 2 | . . . . . . . . . . . . . . . . . . 2 . . . . . . . . . Geek 1 | . . . . . . . . . . . . . . . . . . 1 . . . . . . . . . Ranger 1 | . . . . . . . . . . . . . . . . . . 1 . . . . . . . . . Total Orders . | . . . . . . . . . . . . . . . . . . . . . . . . . . . . Ally Attacks 78 | . . . . . . . . 44 14 5 . . . . . . . . . . . . . . . . 15 Total Damage 1067 | . . . . . . . . 525 70 46 . . . . . . . . . . . . . . . . 426 Kills 10 | . . . . . . . . 3 2 1 . . . . . . . . . . . . . . . . 4 Allies Corrupted . | . . . . . . . . . . . . . . . . . . . . . . . . . . . . Allies Melted 1 | . . . . . . . . . . . . . . . . . . . . . . . . . 1 . . Intel | -11 -10 -10 -9 -9 -9 -8 -8 -8 -8 -8 -7 -6 -5 -5 -5 -5 -4 -4 -4 -4 -4 -3 -3 -3 -2 -2 -1 ------- Run | Yrd Mat Min Mat Min Exi Min Mat Gar Mat Gar Fac Fac Fac Upp Upp Zhi Pro Fac Upp Upp War Pro Res DSF Res Tes Acc Active Infowar (turns) 11625 | 7 411 222 44 . . . . 1336 894 2 1660 2104 481 283 61 66 114 452 87 115 340 83 84 311 1805 422 241 Optics 3437 | . . . . . . . . . . . 49 . . . . . . . . 102 340 83 84 311 1805 422 241 Sensors 5260 | . . . . . . . . . . . 1612 2104 481 283 61 66 114 452 87 . . . . . . . . Terrain 795 | . . . . . . . . 1 792 2 . . . . . . . . . . . . . . . . . Seismic 684 | 7 411 222 44 . . . . . . . . . . . . . . . . . . . . . . . . Machine Analysis 1438 | . . . . . . . . 1336 102 . . . . . . . . . . . . . . . . . . Cloaking 510 | . . . . . . . . . . . . . . . . . . . . 113 248 46 84 19 . . . Jamming 2853 | . . . . . . . . . . . . . . . . . . 54 . 6 . . 83 261 1805 422 222 ECM 47 | . . . . . . . . . . . . . . . . . . . . . . . . . 47 . . Robot Analysis Total 4 | . . . . . . . . . . . . . . . . 4 . . . . . . . . . . . Derelict Logs Recovered 12 | . . 1 . . . . . . . . . . . 2 1 . 3 . 3 2 . . . . . . . Drone Launches . | . . . . . . . . . . . . . . . . . . . . . . . . . . . . Drone Recoveries . | . . . . . . . . . . . . . . . . . . . . . . . . . . . . Exploration | -11 -10 -10 -9 -9 -9 -8 -8 -8 -8 -8 -7 -6 -5 -5 -5 -5 -4 -4 -4 -4 -4 -3 -3 -3 -2 -2 -1 ------------- Run | Yrd Mat Min Mat Min Exi Min Mat Gar Mat Gar Fac Fac Fac Upp Upp Zhi Pro Fac Upp Upp War Pro Res DSF Res Tes Acc Turns Passed 18765 | 232 411 222 1314 645 1035 1103 1128 1451 894 1280 1801 2137 481 283 61 66 114 452 228 141 340 83 84 311 1805 422 241 Spaces Moved 11762 | 110 201 148 562 191 319 317 406 530 375 586 1165 1059 291 505 184 146 333 788 396 306 822 276 99 140 1150 200 157 Core 29 | 11 . . . . . . . . . . . . . . . . . . . . . . . . . . 18 Treads 4019 | 99 86 . 139 191 319 317 406 530 20 . . 199 108 . . . . . . . . . . 116 1150 200 139 Legs 203 | . . . . . . . . . . . . 203 . . . . . . . . . . . . . . . Wheels 3449 | . 115 148 423 . . . . . 355 586 1165 657 . . . . . . . . . . . . . . . Hover 2255 | . . . . . . . . . . . . . 183 505 184 146 333 788 116 . . . . . . . . Flight 1807 | . . . . . . . . . . . . . . . . . . . 280 306 822 276 99 24 . . . Fastest Speed 23 | 50 135 135 135 320 320 320 235 238 120 120 115 105 33 33 33 30 30 30 33 27 25 25 23 24 145 145 50 Average Speed 123 | 149 145 135 191 320 320 320 238 238 133 132 120 137 80 33 33 31 30 31 41 27 26 25 28 134 145 147 136 Slowest Speed 400 | 160 160 135 320 320 320 320 320 238 238 145 130 400 160 96 33 34 30 45 106 37 27 25 105 145 145 225 200 Overloaded Moves 28 | . . . . . . . . . . . . . . . . . . 7 21 . . . . . . . . Propulsion Burnouts . | . . . . . . . . . . . . . . . . . . . . . . . . . . . . Robots Hopped . | . . . . . . . . . . . . . . . . . . . . . . . . . . . . Potential Cave-ins 4 | . . . . . . . . . . . . . . . . . . . . . . . . . 4 . . Cave-ins Triggered . | . . . . . . . . . . . . . . . . . . . . . . . . . . . . Teleports 1 | . . . . . . . . . . . . . . . . . . . . . . . . . . 1 . Exploration Rate (%) 45 | 7 41 45 50 49 68 80 32 72 32 66 25 29 5 65 39 60 57 23 53 49 93 38 3 95 48 36 7 Regions Visited 27 Branch Regions 13 Pre-discovered Areas 10 | . . 1 . 1 1 . . . . . . . . 2 . 3 . . 1 . 1 . . . . . . Known Exits Taken 15 | . 1 . 1 . . . 1 . 1 . 1 1 1 1 1 1 1 1 . 1 . 1 1 . . . . Unknown Exits Taken 9 | 1 . 1 . 1 1 1 . . . . . . . . . . . . 1 . 1 . . . 1 1 . Scrap Searched 13 | . . . . . . 1 . . . . . . . 3 1 . 2 . 1 3 . 2 . . . . . Spaces Dug 42 | . . . . . . . . . . . 3 16 9 . . . . . . . . . . 1 13 . . Terrain Destroyed 309 | . 1 . 2 3 . 93 . . 1 2 44 18 18 . . . . . . . . . . 52 51 24 . Melee 19 | . . . . . . . . . . . . 10 9 . . . . . . . . . . . . . . Projectile 166 | . 1 . 2 3 . 1 . . 1 2 44 8 . . . . . . . . . . . 37 44 23 . AOE 124 | . . . . . . 92 . . . . . . 9 . . . . . . . . . . 15 7 1 . Terrain Rammed . | . . . . . . . . . . . . . . . . . . . . . . . . . . . . Walls Destroyed . | . . . . . . . . . . . . . . . . . . . . . . . . . . . . Machines Disabled . | . . . . . . . . . . . . . . . . . . . . . . . . . . . . Actions | -11 -10 -10 -9 -9 -9 -8 -8 -8 -8 -8 -7 -6 -5 -5 -5 -5 -4 -4 -4 -4 -4 -3 -3 -3 -2 -2 -1 --------- Run | Yrd Mat Min Mat Min Exi Min Mat Gar Mat Gar Fac Fac Fac Upp Upp Zhi Pro Fac Upp Upp War Pro Res DSF Res Tes Acc Total 14888 | 144 258 170 730 206 337 376 516 645 730 927 1439 1628 525 585 183 166 347 949 450 347 924 285 146 215 1226 253 181 Wait 1621 | . 9 22 68 7 . 33 48 31 287 157 159 395 181 40 . . . 68 14 4 56 . 20 7 10 1 4 Move 11736 | 109 200 147 561 190 318 316 406 529 375 585 1164 1058 290 504 183 145 332 787 395 305 821 275 98 139 1149 199 156 Hop . | . . . . . . . . . . . . . . . . . . . . . . . . . . . . Pick Up 249 | 9 7 1 31 . 9 3 12 8 15 14 18 26 8 3 . 8 4 15 6 12 12 3 5 9 6 3 2 Fast Attach 57 | 1 1 . 2 . . . 1 . 2 5 6 14 3 4 . 2 1 2 . . 2 . 2 7 2 . . Attach 157 | 6 . . 6 . 1 4 4 4 4 7 7 18 9 1 . 2 . 15 12 10 6 1 6 11 7 11 5 Detach 27 | . . . . . . . 1 1 1 . 1 6 . 1 . . . 3 3 . 1 . 3 1 3 1 1 Swap 72 | . 3 . 6 . 2 . 3 10 5 7 4 7 2 3 . 2 4 5 . . 3 1 . . 4 1 . Drop 212 | . 4 . 20 . 7 2 9 5 19 10 19 28 18 7 . 7 6 13 1 . 9 2 5 10 4 3 4 Fire 484 | 19 34 . 36 9 . 18 32 47 22 80 60 21 4 . . . . . . . . . . 21 41 33 7 Melee 197 | . . . . . . . . 2 . 8 1 52 10 22 . . . 41 19 16 6 3 7 10 . . . Ram 3 | . . . . . . . . . . . . 3 . . . . . . . . . . . . . . . Kick . | . . . . . . . . . . . . . . . . . . . . . . . . . . . . Crush . | . . . . . . . . . . . . . . . . . . . . . . . . . . . . Escape Stasis 47 | . . . . . . . . 8 . 39 . . . . . . . . . . . . . . . . . Rewire 15 | . . . . . . . . . . 15 . . . . . . . . . . . . . . . . . Trap 3 | . . . . . . . . . . . . . . . . . . . . . . . . . . 1 2 Miscellaneous 8 | . . . . . . . . . . . . . . . . . . . . . 8 . . . . . . Route ------- -11/Scrapyard -10/Materials -10/Mines -9/Materials (discovered 4 exits: *Mat / *Min x2 / Sto) -9/Mines (discovered 2 exits: *Mat / *Exi) -9/Exiles -8/Mines -8/Materials (discovered 2 exits: *Fac / Gar) -8/Garrison (discovered 3 exits: *Mat x3) -8/Materials (discovered 3 exits: *Fac x2 / Gar) -8/Garrison (discovered 2 exits: *Fac x2) -7/Factory -6/Factory -5/Factory -5/Upper Caves -5/Upper Caves -5/Zhirov -4/Proximity Caves -4/Factory (discovered 4 exits: *Res / *Upp x2 / Arm) -4/Upper Caves -4/Upper Caves (discovered 2 exits: *Res / *War) -4/Warlord -3/Proximity Caves -3/Research (discovered 2 exits: [*Qua] / DSF) -3/DSF -2/Research (discovered 3 exits: *Acc / *Tes x2) -2/Testing -1/Access (discovered 2 exits: *Sur / Com) To Epsilon Eridani History --------- Turn | Location | Event 6 | -11/Scrapyard | Discovered new exit (range 14) 233 | -11/Scrapyard | Entered Materials 302 | -10/Materials | Build established: Mutant 611 | -10/Materials | Identified exit to Mines 644 | -10/Materials | Entered Mines 688 | -10/Mines | YI-UF0 nonchalantly dropped a Grenade Launcher on the ground 817 | -10/Mines | Learned location of Zion (-7) 851 | -10/Mines | Discovered new exit (range 11) 866 | -10/Mines | Entered Materials 866 | -9/Materials | Evolved 2 slots: Utility x1, Weapon x1 1200 | -9/Materials | Build established: Tank 1774 | -9/Materials | Discovered new exit (range 10) 1815 | -9/Materials | Identified exit to Mines 1815 | -9/Materials | Identified exit to Storage 2024 | -9/Materials | Build established: Scavenger-Tank 2180 | -9/Materials | Entered Mines 2181 | -9/Mines | Learned location of Storage (-9) 2255 | -9/Mines | Met a Derelict bent on vengeance 2328 | -9/Mines | Discovered new exit (range 8) 2812 | -9/Mines | Deemed a non-threat by the Exiles lab entrance 2812 | -9/Mines | Discovered new exit (range 5) 2825 | -9/Mines | Entered Exiles 2920 | -9/Exiles | Met 8R-AWN 2971 | -9/Exiles | Met EX-HEX 3144 | -9/Exiles | Met EX-DEC 3249 | -9/Exiles | Met EX-BIN 3294 | -9/Exiles | Aligned with FarCom system 3297 | -9/Exiles | Given EX-Vault access code 3371 | -9/Exiles | Opened EX-Vault 3398 | -9/Exiles | Found Potential Leg 3402 | -9/Exiles | Found Potential Leg 3409 | -9/Exiles | Found Longsword +1 3431 | -9/Exiles | Found PSU Rigger 3499 | -9/Exiles | Warned to stay clear of 0b10 Research branches 3698 | -9/Exiles | Build established: Tank 3831 | -9/Exiles | Discovered new exit (range 11) 3860 | -9/Exiles | Stole three prototypes: Potential Leg, PSU Rigger, Longsword +1 3860 | -9/Exiles | Entered Mines 4163 | -8/Mines | Build established: Skirmisher 4849 | -8/Mines | Found DCF Scrap (14 items) 4941 | -8/Mines | Discovered new exit (range 6) 4963 | -8/Mines | Entered Materials 4963 | -8/Materials | Evolved 2 slots: Propulsion x1, Utility x1 5302 | -8/Materials | Build established: Tank 5920 | -8/Materials | Discovered new exit (range 3) 6091 | -8/Materials | Identified exit to Garrison 6091 | -8/Materials | Entered Garrison 6091 | -8/Garrison | Warlord forces raided the area 6117 | -8/Garrison | Triggered checkpoint 6185 | -8/Garrison | Garrison Relay disabled 6199 | -8/Garrison | Triggered checkpoint 6219 | -8/Garrison | Triggered checkpoint 6285 | -8/Garrison | Triggered checkpoint 6308 | -8/Garrison | Rescued a captive Derelict 6309 | -8/Garrison | Rescued a captive Derelict 6442 | -8/Garrison | Warlord forces retreated 6574 | -8/Garrison | Build established: Skirmisher 6581 | -8/Garrison | Triggered checkpoint 6677 | -8/Garrison | Triggered checkpoint 6700 | -8/Garrison | Garrison Relay disabled 6752 | -8/Garrison | Discovered new exit (range 10) 6775 | -8/Garrison | Discovered new exit (range 75) 6775 | -8/Garrison | Discovered new exit (range 79) 6775 | -8/Garrison | Discovered new exit (range 7) 7023 | -8/Garrison | Triggered checkpoint 7033 | -8/Garrison | Garrison Relay disabled 7405 | -8/Garrison | Triggered checkpoint 7434 | -8/Garrison | Garrison Relay disabled 7463 | -8/Garrison | Garrison Relay disabled 7478 | -8/Garrison | Garrison Relay disabled 7480 | -8/Garrison | P-60 Hacker assimilated allied G1-QT0(h) 7542 | -8/Garrison | Entered Materials 7542 | -8/Materials | Accompanied by 1 ally 8070 | -8/Materials | Build established: Scavenger-Skirmisher 8187 | -8/Materials | Discovered new exit (range 5) 8370 | -8/Materials | Discovered new exit (range 16) 8436 | -8/Materials | Identified exit to Garrison 8436 | -8/Materials | Entered Garrison 8462 | -8/Garrison | Triggered checkpoint 8524 | -8/Garrison | Garrison Relay disabled 8708 | -8/Garrison | Triggered checkpoint 8784 | -8/Garrison | Triggered checkpoint 8820 | -8/Garrison | Build established: Scavenger-Gunner 8950 | -8/Garrison | Discovered new exit (range 10) 9208 | -8/Garrison | Triggered checkpoint 9298 | -8/Garrison | Triggered checkpoint 9321 | -8/Garrison | Discovered new exit (range 13) 9389 | -8/Garrison | Core integrity fell below 50% 9408 | -8/Garrison | Triggered checkpoint 9419 | -8/Garrison | Lost 4 parts (1p1n1u1w) 9658 | -8/Garrison | Garrison Relay disabled 9716 | -8/Garrison | Entered Factory 9716 | -7/Factory | Evolved 2 slots: Propulsion x1, Utility x1 9718 | -7/Factory | FarCom data flow suspended 10358 | -7/Factory | Discovered new exit (range 16) 10409 | -7/Factory | Build established: Skirmisher 10586 | -7/Factory | Identified exit to Factory 11517 | -7/Factory | Entered another Factory area 11517 | -6/Factory | Evolved 2 slots: Propulsion x2 12304 | -6/Factory | Build established: Mutant 12411 | -6/Factory | Lost 4 parts (1n1u2w) 13156 | -6/Factory | Core integrity fell below 50% 13168 | -6/Factory | Build established: Scavenger-Mutant 13182 | -6/Factory | Lost 3 parts (3n) 13530 | -6/Factory | Discovered new exit (range 5) 13535 | -6/Factory | Identified exit to Factory 13561 | -6/Factory | Build established: Skirmisher 13654 | -6/Factory | Entered another Factory area 13654 | -5/Factory | Evolved 2 slots: Utility x2 14122 | -5/Factory | Discovered new exit (range 6) 14125 | -5/Factory | Identified exit to Upper Caves 14135 | -5/Factory | Entered Upper Caves 14144 | -5/Upper Caves | Found DCF Scrap (15 items) 14177 | -5/Upper Caves | Attracted the attention of an 0b10 outpost 14182 | -5/Upper Caves | Build established: Sprinter 14253 | -5/Upper Caves | Met a Warlord Commander 14254 | -5/Upper Caves | Learned location of Warlord (-4) 14255 | -5/Upper Caves | Warlord Commander delivered Encrypted Comm Array 14257 | -5/Upper Caves | Found Encrypted Comm Array 14291 | -5/Upper Caves | Learned location of Armory (-4) 14412 | -5/Upper Caves | Discovered new exit (range 11) 14415 | -5/Upper Caves | Identified exit to Upper Caves 14418 | -5/Upper Caves | Entered another Upper Caves area 14446 | -5/Upper Caves | Learned Factory stockpile data 14477 | -5/Upper Caves | Discovered new exit (range 7) 14478 | -5/Upper Caves | Identified exit to Zhirov 14479 | -5/Upper Caves | Entered Zhirov 14479 | -5/Zhirov | Discovered new exit (range 3) 14485 | -5/Zhirov | Met Zhirov 14491 | -5/Zhirov | Learned location of Quarantine (-3) 14491 | -5/Zhirov | Learned location of Testing (-2) 14491 | -5/Zhirov | Learned location of Command (-1) 14495 | -5/Zhirov | Zhirov requested help retrieving the SGEMP Prototype 14500 | -5/Zhirov | Found Alien Artifact 14501 | -5/Zhirov | Identified Integrated Reactor 14501 | -5/Zhirov | Installed Integrated Reactor, increased core energy generation (+10) 14508 | -5/Zhirov | Found Alien Artifact 14545 | -5/Zhirov | Identified exit to Proximity Caves 14545 | -5/Zhirov | Entered Proximity Caves 14547 | -4/Proximity Caves | Learned Research terminal intel 14548 | -4/Proximity Caves | Learned Research terminal intel 14552 | -4/Proximity Caves | Found DCF Scrap (13 items) 14593 | -4/Proximity Caves | Learned Research terminal intel 14607 | -4/Proximity Caves | Encountered a Derelict sapper outpost 14654 | -4/Proximity Caves | Discovered new exit (range 13) 14659 | -4/Proximity Caves | Identified exit to Factory 14659 | -4/Proximity Caves | Entered Factory 14659 | -4/Factory | Evolved 2 slots: Utility x2 14660 | -4/Factory | Identified exit to Upper Caves 14711 | -4/Factory | Identified exit to Armory 14729 | -4/Factory | Discovered new exit (range 7) 14731 | -4/Factory | Identified exit to Research 14741 | -4/Factory | Joined by Warlord Ranger squad 14957 | -4/Factory | Build established: Hacker-Sprinter 15065 | -4/Factory | Lost 5 parts (3n2u) 15069 | -4/Factory | Joined by Warlord Geek squad 15111 | -4/Factory | Entered Upper Caves 15115 | -4/Upper Caves | Lost 3 parts (2n1u) 15206 | -4/Upper Caves | Found Alien Artifact 15251 | -4/Upper Caves | Lost 10 parts (2p3n5u) 15266 | -4/Upper Caves | Learned 4 Research zone layouts 15273 | -4/Upper Caves | Spotted B-86 Titan 15333 | -4/Upper Caves | Discovered new exit (range 10) 15334 | -4/Upper Caves | Learned Research terminal intel 15339 | -4/Upper Caves | Entered another Upper Caves area 15339 | -4/Upper Caves | Spotted 5H-JUG(f) 15341 | -4/Upper Caves | Encountered a Master Thief 15343 | -4/Upper Caves | Lost 5 parts (2n3u) 15343 | -4/Upper Caves | Destroyed 5H-JUG(f) 15347 | -4/Upper Caves | Spotted QN-D5P(f) 15348 | -4/Upper Caves | Encountered a Master Thief 15354 | -4/Upper Caves | Longsword +1 stolen by Master Thief 15384 | -4/Upper Caves | Attracted the attention of an 0b10 checkpoint 15394 | -4/Upper Caves | Core integrity fell below 50% 15411 | -4/Upper Caves | Learned Research garrison access intel 15428 | -4/Upper Caves | Discovered exit to Research (range 7) 15467 | -4/Upper Caves | Identified exit to Warlord 15472 | -4/Upper Caves | Spotted B-86 Titan 15480 | -4/Upper Caves | Entered Warlord 15490 | -4/Warlord | System corruption cleaned by Quarantine Array 15584 | -4/Warlord | Learned Research stockpile data 15584 | -4/Warlord | Learned 4 Command zone layouts 15584 | -4/Warlord | Learned Armory garrison access intel 15584 | -4/Warlord | Learned Research terminal intel 15598 | -4/Warlord | Met Warlord 15623 | -4/Warlord | Warlord's base attacked by MAIN.C 15652 | -4/Warlord | Build established: Scavenger-Sprinter 15704 | -4/Warlord | Found Prototype Processor 15705 | -4/Warlord | Identified Exp. Targeting Computer 15710 | -4/Warlord | Found Prototype Device 15710 | -4/Warlord | Identified Thermal Barrier 15719 | -4/Warlord | Found Prototype Reactor 15769 | -4/Warlord | Found Prototype Energy Gun 15770 | -4/Warlord | Found Prototype Energy Gun 15784 | -4/Warlord | Found Prototype Energy Gun 15786 | -4/Warlord | Found Prototype Energy Gun 15813 | -4/Warlord | Opened side exit 15818 | -4/Warlord | Discovered new exit (range 9) 15820 | -4/Warlord | Entered Proximity Caves 15831 | -3/Proximity Caves | Spotted B-86 Titan 15886 | -3/Proximity Caves | Snuck into a huge 0b10 base via the rear entrance 15893 | -3/Proximity Caves | Discovered exit to Research (range 8) 15903 | -3/Proximity Caves | Entered Research 15903 | -3/Research | Evolved 2 slots: Power x1, Propulsion x1 15906 | -3/Research | Loaded intel: 24 terminal locations 15907 | -3/Research | Loaded intel: 4 garrison access locations 15924 | -3/Research | Discovered new exit (range 8) 15987 | -3/Research | Identified exit to DSF 15987 | -3/Research | Entered DSF 16040 | -3/DSF | Lost 11 parts (2p5n4u) 16046 | -3/DSF | Additional patrols routed to DSF 16049 | -3/DSF | Identified Vortex Rail (x2) 16063 | -3/DSF | Identified Vortex Rifle (x2) 16204 | -3/DSF | Sterilization system engaged 16210 | -3/DSF | Discovered new exit (range 14) 16224 | -3/DSF | Ambient heat levels rising (+10) 16239 | -3/DSF | Ambient heat levels rising (+10) 16254 | -3/DSF | Ambient heat levels rising (+10) 16269 | -3/DSF | Ambient heat levels rising (+10) 16284 | -3/DSF | Ambient heat levels rising (+10) 16298 | -3/DSF | Entered Research 16298 | -2/Research | Warlord forces began assault on 0b10 16298 | -2/Research | Evolved 2 slots: Propulsion x1, Weapon x1 16299 | -2/Research | Loaded intel: 21 terminal locations 16323 | -2/Research | Distinguished unit "Department No. 42" dispatched to help 16323 | -2/Research | Distinguished unit "Magnificent Bastards" dispatched to help 16408 | -2/Research | Research machine network offline 16520 | -2/Research | Build established: Tank 16715 | -2/Research | Borebot progress halted 16753 | -2/Research | Discovered new exit (range 17) 16934 | -2/Research | Borebot progress halted 16959 | -2/Research | Spotted Striker 17064 | -2/Research | Met up with Warlord 17176 | -2/Research | Spotted Striker 17183 | -2/Research | Spotted Striker 17191 | -2/Research | P-80 Master assimilated allied KI-T9F(i) 17209 | -2/Research | P-80 Master assimilated allied UF-KRB(L) 17210 | -2/Research | Spotted UF-KRB(L) 17213 | -2/Research | Destroyed UF-KRB(L) 17237 | -2/Research | Lost 11 allies 17287 | -2/Research | Discovered new exit (range 16) 17298 | -2/Research | Spotted Striker 17319 | -2/Research | Destroyed Striker 17810 | -2/Research | Given Cave Seal Controls access code 18046 | -2/Research | Discovered new exit (range 5) 18103 | -2/Research | Entered Testing 18146 | -2/Testing | Protovariant out of control (PD-PX8FSIQA4S) 18146 | -2/Testing | Unleashed a protovariant (PD-PX8FSIQA4S) 18226 | -2/Testing | Spotted Striker 18235 | -2/Testing | Spotted Striker 18264 | -2/Testing | Destroyed Striker 18270 | -2/Testing | Destroyed Striker 18281 | -2/Testing | Spotted Alpha 7 18330 | -2/Testing | Destroyed Alpha 7 18340 | -2/Testing | Stole the SGEMP Prototype 18415 | -2/Testing | Identified Transdimensional Reconstructor 18415 | -2/Testing | Warped through subspace 18451 | -2/Testing | Scanned by Researcher 18496 | -2/Testing | System corruption reached 10% 18503 | -2/Testing | Discovered new exit (range 13) 18525 | -2/Testing | Lost 15 parts (2p4n3u6w) 18525 | -2/Testing | Entered Access 18525 | -1/Access | Evolved 2 slots: Power x1, Utility x1 18526 | -1/Access | Delivered the SGEMP Prototype to Zhirov 18526 | -1/Access | Zhirov transferred Access data 18527 | -1/Access | Loaded intel: 108 machine locations 18527 | -1/Access | Loaded intel: 94 trap records 18527 | -1/Access | Identified exit to Surface 18527 | -1/Access | Discovered exit to Surface (range 99) 18527 | -1/Access | Identified exit to Command 18527 | -1/Access | Discovered exit to Command (range 214) 18697 | -1/Access | Zhirov warped through subspace 18761 | -1/Access | Identified Dimensional Node Initializer 18761 | -1/Access | Initialized slip node 18766 | *** | Escaped! Last Messages --------------- 18749_ Terminal disabled. 18749_ Dropped Adv. Force Field. 18751_ Penetrated by Slug. 18751_ Slug penetrates Sealed Barrier. 18751_ Slug penetrates Terminal. 18753_ PSU Rigger destroyed. 18754_ Penetrated by Slug. 18754_ Enh. Quantum Rifle destroyed. 18754_ Penetrated by Slug. 18754_ Plasma Cutter destroyed. 18757_ Penetrated by Slug. 18757_ Slug penetrates Sealed Barrier. 18758_ Dropped Adv. Energy Well. 18760_ Slug penetrates Sealed Barrier. 18761_ Identified Dimensional Node Initializer. 18761_ Initializer activates and latches into the ground. 18763_ Penetrated by Slug. 18764_ Slug penetrates Main Access Shell. 18764_ Main Access Shell breached. Map ----- +----------------------------------------------------+ | ### # ####################### ##### | | ### # ## ###########+####### | | ### # ## ########### * + | | ### # ## # # ###### | | ########## ## # # "######### | | """T""" ## " # + ########## | | """ """ ## """ # # # ! | | ^ ## """# " # | | ## " # # # """""" | | ^ ^ ## # # # ""S""" | | ## # # # """ | | ########+#############+### # | | # ! | | " | | ###################################### # | | ## ############################# # | | ## ############################# # | | ## ############################# # | | ## ############################# ########## | | ## ############################# ########## | | ## #####################"######" ########## | | ## # """" " ########## | | ## # """" " ########## | | #####+### """" """"" " ########## | | ## """" " " ########## | | ## """" " "@ " ########## | | ## """" " "" " ! ########## | | ### """" " " " ########## | | # ### """" """""" " ! ########## | | # ### """" " " ""!""" ########## | | # ### """" """"T""" ########## | | + #######################"####### ########## | | # ############################### ########## | | # ###"""""""""""######### ####### ########## | | # ### """"T"""" ######## # ########## | | #^^^^# ! ##### # ########## | | # # ##### " + ########## | | ### # """"" ##### """ # ########## | | # """"" ##### """ # ########## | | # """"" ##### " # ########## | | + """"" ##### # ########## | | # """"" ##### # ########## | | ### # ##### # ########## | | # # ############## ## | | # #######+####################### ## | | # ####### ######### ## | | # ####### ######### ## | | # ####### ######### ########+####### | | # ####### ######### ### # | | # #######+######### ### # | +----------------------------------------------------+ Best States ------------- Heat Dissipation 80 Coolant Potential 50 Energy Generation 57 Energy Capacity 1090 Matter Stores 300 Matter Capacity 300 Sight Range 22 Robot Scan Range 16 Terrain Scan Range 16 Terrain Scan Density 110 ECM Strength 2 Jamming Range 12 Cloak Strength 3 Power Amplification 30 Additional Mass Support 9 Armor Coverage 600 Resistance: TH 50 Resistance: EM 25 Core Shielding 20 Melee Speed Boost 20 Phase Shifting 5 Evasion (%) 74 Targeting Accuracy 10 Melee Accuracy 16 Target Analysis 5 Recoil Reduction 8 Offensive Hacking 28 Item Schematics ----------------- Assault Drone Bay | -5/Zhirov | Free Exp. Heat Sink | -5/Zhirov | Free Exp. Optical Array | -5/Zhirov | Free Imp. Arc Thrower | -5/Zhirov | Free Exp. Melee Analysis Suite | -2/Testing | Archive Robot Schematics ------------------ G-67 Veteran | -2/Testing | Archive R-06 Scavenger | -2/Testing | Archive W-44 Eye | -2/Testing | Archive Fabricated ------------ Nothing Repaired ---------- Nothing Alien Tech Used ----------------- Integrated Reactor Transdimensional Reconstructor Dimensional Node Initializer Achievements -------------- Rampage Special Delivery Challenges ------------ None Game ------ Seed ReflectiveCobblerChainsword Manual? 0 Play Time 03:05:02 Cumulative 242.1 hours Start 2025.08.31 @ 15:07:17 End 2025.08.31 @ 19:29:15 Sessions 5 Manual Loads 0 Difficulty Rogue Special Mode None Game No. 354 Rogue 354 Adventurer 0 Explorer 0 Win Type 0 Total 5 Types 4/0/1/0/0/0/0/0/0/0 Lore% 82 Gallery% 77 Achievement% 59 Wizard Run 0 Options --------- Layout 1 ASCII 0 Keyboard 0 Movement Mouse Keybinds 0 Fullscreen 1 Font 24/Smallcaps Map View 50x40 Zoom Use 0% Tactical HUD 1 Map Filters NONE Filters NONE Steam 1 RUN: 1a0974d4-8ab1-48d5-8fc4-8f683cef0c5b